Cogmind - Beta 15 @@@ ROGUE MODE // 2025.05.10 @ 13:50:23 Player: Lunace Result: Self-destructed Performance ------------- Evolutions (3) 1500 Regions Visited (6) 1200 Robots Destroyed (11) 55 Value Destroyed (360) 360 Prototype IDs (2) 40 Alien Tech Used (0) 0 Bonus (66) 66 TOTAL SCORE: 3221 Bonus ------- Follower Combat Kills 66 Cogmind --------- Core Integrity 564/700 Matter 300/300 Energy 150/150 System Corruption 0% Temperature Cool (0) Movement Hovering (77) Location -7/Factory Parts ------- > --- POWER (1) -------- Micro Nuclear Core > --- PROPULSION (4) --- Combat Airjet Combat Airjet > --- UTILITY (6) ------ Improved Signal Interpreter Hacking Suite > --- WEAPON (2) ------- Advanced Beam Rifle > --- INVENTORY (5) ---- Flight Unit Flight Unit Flight Unit VTOL Module Cesium-ion Thruster Peak State ------------ > --- POWER ------------ Micro Nuclear Core > --- PROPULSION ------- Combat Airjet Combat Airjet > --- UTILITY ---------- Improved Signal Interpreter Improved Light Armor Plating Hacking Suite > --- WEAPON ----------- Heavy EM Shotgun Advanced Beam Rifle > --- INVENTORY -------- Light Nuclear Core Flight Unit Flight Unit Flight Unit Cesium-ion Thruster [Rating: 31] Favorites ----------- Power Ion Engine Engine Ion Engine Power Core Light Nuclear Core Propulsion Combat Airjet Treads Light Treads Hover Unit Combat Airjet Utility Improved Light Armor Plating Device Structural Scanner Storage Small Storage Unit Processor Improved Signal Interpreter Hackware Hacking Suite Protection Improved Light Armor Plating Weapon Medium Laser Energy Gun Medium Laser Build | -11 -10 -10 -10 -9 -8 -7 ------- Run | Yrd Mat Min Exi Min Mat Fac Slots Evolved 6 | . . . . . 4 2 Power . | . . . . . . . Propulsion 2 | . . . . . 2 . Utility 4 | . . . . . 2 2 Weapon . | . . . . . . . Parts Attached 22 | 7 . 9 . . 5 1 Power 6 | 1 . 3 . . 1 1 Engine 3 | 1 . 2 . . . . Core 3 | . . 1 . . 1 1 Reactor . | . . . . . . . Propulsion 4 | 2 . 2 . . . . Treads 2 | 2 . . . . . . Leg . | . . . . . . . Wheel . | . . . . . . . Hover 2 | . . 2 . . . . Flight . | . . . . . . . Utility 7 | 2 . 3 . . 2 . Device 3 | 1 . 2 . . . . Storage 1 | 1 . . . . . . Processor 1 | . . . . . 1 . Hackware 1 | . . . . . 1 . Protection 1 | . . 1 . . . . Artifact . | . . . . . . . Weapon 5 | 2 . 1 . . 2 . Energy Gun 5 | 2 . 1 . . 2 . Energy Cannon . | . . . . . . . Ballistic Gun . | . . . . . . . Ballistic Cannon . | . . . . . . . Launcher . | . . . . . . . Special Weapon . | . . . . . . . Impact Weapon . | . . . . . . . Slashing Weapon . | . . . . . . . Piercing Weapon . | . . . . . . . Special Melee Weapon . | . . . . . . . Unidentified Prototypes 2 | . . . . . 2 . Parts Lost 6 | . . 3 . . 1 2 Power . | . . . . . . . Propulsion 1 | . . 1 . . . . Utility 2 | . . . . . 1 1 Weapon 3 | . . 2 . . . 1 Highest Loss Streak 2 | . . 1 . . 1 2 To Critical Strikes . | . . . . . . . Average Backups 4 | . 2 4 5 5 4 4 Power . | . 1 1 . . . . Propulsion 2 | . . 1 4 4 4 4 Utility 1 | . 1 1 1 1 . . Weapon . | . . . . . . . Tool/Special . | . . . . . . . Unused Backups 8 | . . 3 . . 1 4 Power . | . . . . . . . Propulsion 6 | . . 1 . . 1 4 Utility 2 | . . 2 . . . . Weapon . | . . . . . . . Tool/Special . | . . . . . . . Average Slot Usage (%) 82 | . 100 90 85 85 61 55 Engine 11 | . 14 12 14 14 7 . Core 1 | . . 1 . . 1 7 Treads 9 | . 28 12 . . . . Hover 13 | . . 11 28 28 15 15 Device 10 | . 14 11 14 14 7 . Storage 6 | . 14 9 . . . . Hackware 2 | . . . . . 8 7 Protection 6 | . . 5 14 14 9 4 Energy Gun 19 | . 28 23 14 14 11 11 Peak Build Rating 31 | 7 7 21 17 17 30 31 Average Rating 14 | 4 7 11 17 17 21 27 On Entrance 13 | . 7 7 17 17 17 30 Naked Turns . | . . . . . . . Heaviest Build 18 | 15 15 18 10 10 14 15 Greatest Support 40 | 40 40 40 12 12 24 24 Greatest Overweight (x) 1 | 1 . 1 . . . . Average Overweight (x) . | . . . . . . . Largest Inventory Capacity 8 | 8 8 8 5 5 5 5 Average Capacity 6 | 7 8 7 5 5 5 5 Most Carried 7 | 2 2 7 5 5 5 5 Average Carried 4 | . 2 4 5 5 4 4 Final Capacity 8 | 8 8 5 5 5 5 5 Final Carried 5 | 2 2 5 5 5 4 5 Class Distribution -------------------- 65% | Mutant 34% | Scavenger-Mutant Dominant Class ---------------- Mutant | -10/Materials Mutant | -10/Mines Scavenger-Mutant | -10/Exiles Scavenger-Mutant | -9/Mines Mutant | -8/Materials Mutant | -7/Factory Resources | -11 -10 -10 -10 -9 -8 -7 ----------- Run | Yrd Mat Min Exi Min Mat Fac Matter Collected 425 | 193 25 152 . . 30 25 Remotely . | . . . . . . . Salvage Created 491 | 28 25 229 . . 130 79 Parts 21 | 3 5 4 . . 5 4 Haulers Intercepted . | . . . . . . . Recyclers Shooed . | . . . . . . . Parts Field Recycled . | . . . . . . . Retrieved Matter . | . . . . . . . Parts Self-Destructed . | . . . . . . . Prevented . | . . . . . . . Kills | -11 -10 -10 -10 -9 -8 -7 ------- Run | Yrd Mat Min Exi Min Mat Fac Combat Hostiles Destroyed 20 | . 2 12 . . 3 3 Guns 20 | . 2 12 . . 3 3 Classes Destroyed 4 | 1 1 2 . . . . Tunneler 1 | 1 . . . . . . Swarmer 5 | . 2 . . . . 3 Grunt 5 | . . 2 . . 3 . Assembled 10 | . . 10 . . . . Best Kill Streak 3 | 1 2 2 . . 3 3 Combat Bots Only 3 | . 2 2 . . 3 3 Max Kills in Single Turn 1 | 1 1 1 . . 1 1 Gunslinging . | . . . . . . . Exploded . | . . . . . . . Melee . | . . . . . . . Uniques/NPCs Destroyed . | . . . . . . . Combat | -11 -10 -10 -10 -9 -8 -7 -------- Run | Yrd Mat Min Exi Min Mat Fac Hostile Shots Fired 145 | . 15 64 . . 33 33 Missed 44 | . 2 20 . . 15 7 Hits 101 | . 13 44 . . 18 26 Melee 7 | . . 7 . . . . Projectile 94 | . 13 37 . . 18 26 Critical Strikes 1 | . . 1 . . . . Part Disruptions 1 | . . 1 . . . . Damage Taken 1430 | . 108 691 . . 254 377 Core 374 | . 23 156 . . 59 136 Absorbed by Shields . | . . . . . . . Regen/Repaired (Parts) 81 | . . . . . 81 . Core Remaining (%) 72 | 100 . . . 28 89 . Volleys Fired 77 | 1 3 47 . 2 8 16 Largest 2 | 2 2 2 . 1 2 2 Hottest 115 | 100 100 115 . 65 111 111 Shots Fired 132 | 2 6 87 . 2 14 21 Gun 132 | 2 6 87 . 2 14 21 Cannon . | . . . . . . . Launcher . | . . . . . . . Special . | . . . . . . . Kinetic . | . . . . . . . Thermal 119 | 2 6 87 . 2 6 16 Explosive . | . . . . . . . Electromagnetic 13 | . . . . . 8 5 Robot Hit Streak 10 | 1 3 10 . 4 8 3 Robot Miss Streak 5 | . 1 5 . . 2 4 Penetration Max . | . . . . . . . Secondary Targets 2 | . 1 . . . 1 . Max Gunslinging Chain 1 | . 1 . . . 1 . Shots Hit Robots 76 | 1 4 48 . 2 11 10 Core Hits 40 | 1 2 25 . . 7 5 Critical Kills . | . . . . . . . Critical Parts Destroyed . | . . . . . . . Critical Strikes 10 | . . 8 . . 1 1 Burn 10 | . . 8 . . 1 1 Melee Attacks . | . . . . . . . Impact . | . . . . . . . Slashing . | . . . . . . . Piercing . | . . . . . . . Sneak Attacks . | . . . . . . . Combat Hostiles . | . . . . . . . Follow-up Attacks . | . . . . . . . Damage Inflicted 1168 | 12 52 631 . 30 259 184 Guns 1112 | 12 52 631 . 30 203 184 Cannons . | . . . . . . . Explosions 56 | . . . . . 56 . Melee . | . . . . . . . Ramming . | . . . . . . . Kinetic . | . . . . . . . Thermal 1001 | 12 52 631 . 30 136 140 Explosive . | . . . . . . . Electromagnetic 167 | . . . . . 123 44 Impact . | . . . . . . . Slashing . | . . . . . . . Piercing . | . . . . . . . Highest Corruption . | . . . . . . . Average Corruption . | . . . . . . . Corruption Purged . | . . . . . . . Corruption Blocked . | . . . . . . . Overload Shots . | . . . . . . . Overflow Damage . | . . . . . . . Projectiles . | . . . . . . . Explosions . | . . . . . . . Melee . | . . . . . . . Knockbacks . | . . . . . . . Impact . | . . . . . . . Kinetic . | . . . . . . . Secondary . | . . . . . . . Self-Inflicted Damage . | . . . . . . . Shots . | . . . . . . . Rammed . | . . . . . . . Targets Rammed . | . . . . . . . Kicked . | . . . . . . . Crushed . | . . . . . . . Highest Temperature 473 | 39 79 473 . 28 324 238 Average Temperature 133 | 20 33 139 . 18 143 150 Received Heat Transfer 393 | . . 258 . . 135 . Effects 7 | . . 5 . . 2 . Shutdowns 3 | . . 2 . . 1 . Energy Bleed 1 | . . 1 . . . . Interference 2 | . . 1 . . 1 . Short Circuit 1 | . . 1 . . . . Siege Activations . | . . . . . . . Martial Activations . | . . . . . . . Shielding Activations . | . . . . . . . Robots Disrupted . | . . . . . . . Combat Hostiles . | . . . . . . . Robots Corrupted . | . . . . . . . Combat Hostiles . | . . . . . . . Parts Fried . | . . . . . . . Impact Corruptions . | . . . . . . . Robots Melted . | . . . . . . . Combat Hostiles . | . . . . . . . Parts Melted 2 | . . . . . 1 1 Heat Transferred 3232 | 37 148 2368 . 74 272 333 Parts Sabotaged . | . . . . . . . Parts Stolen . | . . . . . . . Parts Stripped . | . . . . . . . Power Chain Reactions 1 | . . . . . 1 . Alert | -11 -10 -10 -10 -9 -8 -7 ------- Run | Yrd Mat Min Exi Min Mat Fac Maximum Alert Level . | . . . . . . . Low Security (%) 100 | 100 100 100 . 100 100 100 Level 1 . | . . . . . . . Level 2 . | . . . . . . . Level 3 . | . . . . . . . Level 4 . | . . . . . . . Level 5 . | . . . . . . . High Security . | . . . . . . . Max Security . | . . . . . . . Peak Influence 134 | 5 69 62 . . 134 71 Initial 51 | . . 17 . . . 51 Average 19 | . 36 9 . . 30 44 Influence Increases 489 | 5 126 80 . . 208 70 Destroy 0b10 Robot/C 240 | . 40 40 . . 100 60 Destroy 0b10 Robot/NC 5 | 5 . . . . . . Destroy Leader 60 | . 10 10 . . 30 10 Allied During Kill 6 | . . . . . 6 . Successful Hack 55 | . 31 . . . 24 . Select Force Hacks 60 | . 30 . . . 30 . Disable Machine 45 | . . 30 . . 15 . Destroy Structure 3 | . . . . . 3 . Lose Combat Pursuer 15 | . 15 . . . . . Influence Decreases 428 | 5 81 125 . . 94 123 Entered New Map 91 | . . 28 . . . 63 Time Decay 277 | 5 81 87 . . 64 40 Lost Part 40 | . . 10 . . 10 20 Lost Ally 20 | . . . . . 20 . Squads Dispatched 4 | . 1 . . . 3 . Investigation 3 | . 1 . . . 2 . Extermination . | . . . . . . . Reinforcement 1 | . . . . . 1 . Assault . | . . . . . . . Garrison . | . . . . . . . Intercept . | . . . . . . . Searches Triggered . | . . . . . . . Construction Impeded . | . . . . . . . Haulers Reinforced . | . . . . . . . Active Scanning Responses . | . . . . . . . Cargo Convoy Interrupts . | . . . . . . . Stealth | -11 -10 -10 -10 -9 -8 -7 --------- Run | Yrd Mat Min Exi Min Mat Fac Distress Signals 3 | . . . . . 3 . Communications Jammed . | . . . . . . . Distress Signals . | . . . . . . . Times Spotted 32 | . 6 13 . . 10 3 Peak Tracking Total 8 | . 3 2 . . 8 3 Tactical Retreats 3 | . 1 2 . . . . Traps | -11 -10 -10 -10 -9 -8 -7 ------- Run | Yrd Mat Min Exi Min Mat Fac Traps Triggered . | . . . . . . . Indirectly . | . . . . . . . Trap Hack Attempts . | . . . . . . . Triggered . | . . . . . . . Disarmed . | . . . . . . . Reprogrammed . | . . . . . . . Reused . | . . . . . . . Traps Extracted . | . . . . . . . Installed . | . . . . . . . Triggered . | . . . . . . . Machines | -11 -10 -10 -10 -9 -8 -7 ---------- Run | Yrd Mat Min Exi Min Mat Fac Machines Disabled 3 | . . 2 . . 1 . Max in Single Turn 1 | . . 1 . . 1 . Machines Repaired . | . . . . . . . Machines Dismantled . | . . . . . . . Machines Sabotaged . | . . . . . . . Overloaded Fab Kills . | . . . . . . . Hacking | -11 -10 -10 -10 -9 -8 -7 --------- Run | Yrd Mat Min Exi Min Mat Fac Machines Accessed 11 | . 4 1 1 . 4 1 Terminals 6 | . 3 . . . 2 1 Fabricators . | . . . . . . . Repair Stations 1 | . . . . . 1 . Recycling Units 2 | . 1 . . . 1 . Scanalyzers . | . . . . . . . Garrison Access . | . . . . . . . Total Hacks 29 | . 10 1 1 . 15 2 Successful 19 | . 7 1 1 . 9 1 Failed 10 | . 3 . . . 6 1 Catastrophic 1 | . . . . . 1 . Database Lockouts . | . . . . . . . Manual 22 | . 8 . . . 13 1 Terminals 22 | . 8 . . . 12 2 Fabricators . | . . . . . . . Repair Stations 2 | . . . . . 2 . Recycling Units 3 | . 2 . . . 1 . Scanalyzers . | . . . . . . . Garrison Access . | . . . . . . . Terminal Hacks 8 | . 2 1 1 . 3 1 Record 1 | . . . 1 . . . Open Door 1 | . . 1 . . . . Level Access Points 1 | . . . . . 1 . Branch Access Points 3 | . 1 . . . 1 1 Terminal Index 2 | . 1 . . . 1 . Fabricator Hacks . | . . . . . . . Repair Station Hacks 2 | . . . . . 2 . Scan Component 1 | . . . . . 1 . Repair 1 | . . . . . 1 . Recycling Unit Hacks 1 | . 1 . . . . . Retrieve Components 1 | . 1 . . . . . Scanalyzer . | . . . . . . . Garrison Access Hacks . | . . . . . . . Unauthorized Hacks 8 | . 4 . . . 4 . Terminals 6 | . 3 . . . 3 . Botnet 4 | . 2 . . . 2 . Operators 2 | . 1 . . . 1 . Fabricators . | . . . . . . . Repair Stations . | . . . . . . . Recycling Units 2 | . 1 . . . 1 . Tunnel 2 | . 1 . . . 1 . Scanalyzers . | . . . . . . . Garrison Access . | . . . . . . . Data Cores Recovered . | . . . . . . . Used . | . . . . . . . Hacking Detections 8 | . 4 . . . 3 1 Full Trace Events . | . . . . . . . Feedback Events . | . . . . . . . Feedback Blocked . | . . . . . . . Robot Schematics Acquired . | . . . . . . . Robots Built . | . . . . . . . Authchips . | . . . . . . . Time . | . . . . . . . Total Robot Build Rating . | . . . . . . . Part Schematics Acquired . | . . . . . . . Parts Built . | . . . . . . . Authchips . | . . . . . . . Time . | . . . . . . . Total Part Build Rating . | . . . . . . . Parts Repaired 1 | . . . . . 1 . Time 70 | . . . . . 70 . Parts Recycled . | . . . . . . . Recycled Matter . | . . . . . . . Retrieved Matter . | . . . . . . . Retrieved Components 1 | . 1 . . . . . Parts Scanalyzed . | . . . . . . . Part Schematics Acquired . | . . . . . . . Parts Damaged . | . . . . . . . Bothacking | -11 -10 -10 -10 -9 -8 -7 ------------ Run | Yrd Mat Min Exi Min Mat Fac Used RIF Installer . | . . . . . . . Robots Hacked . | . . . . . . . Non-combat . | . . . . . . . Combat . | . . . . . . . Robot Hacks Applied . | . . . . . . . Relay Couplers Released . | . . . . . . . Fabnet Peak Effective % . | . . . . . . . Robots Rewired . | . . . . . . . Allies Hacked . | . . . . . . . Hacks Repelled . | . . . . . . . Allies | -11 -10 -10 -10 -9 -8 -7 -------- Run | Yrd Mat Min Exi Min Mat Fac Total Allies 1 | . . . . 1 . . Largest Group 1 | . . . . 1 1 . Highest-Rated Group 31 | . . . . 31 31 . Highest-Rated Ally 31 | . . . . 31 31 . Total Orders . | . . . . . . . Ally Attacks 11 | . . . . . 11 . Total Damage 189 | . . . . . 189 . Kills 2 | . . . . . 2 . Allies Corrupted . | . . . . . . . Allies Melted . | . . . . . . . Intel | -11 -10 -10 -10 -9 -8 -7 ------- Run | Yrd Mat Min Exi Min Mat Fac Active Infowar (turns) 940 | 3 201 292 140 96 208 . Structural 549 | . . 105 140 96 208 . Seismic 391 | 3 201 187 . . . . Robot Analysis Total . | . . . . . . . Derelict Logs Recovered 2 | . . 1 . 1 . . Drone Launches . | . . . . . . . Drone Recoveries . | . . . . . . . Exploration | -11 -10 -10 -10 -9 -8 -7 ------------- Run | Yrd Mat Min Exi Min Mat Fac Turns Passed 1384 | 68 201 539 140 96 246 94 Spaces Moved 1067 | 34 121 335 175 113 222 67 Core 3 | 3 . . . . . . Treads 268 | 31 121 116 . . . . Legs . | . . . . . . . Wheels . | . . . . . . . Hover 796 | . . 219 175 113 222 67 Flight . | . . . . . . . Fastest Speed 50 | 50 160 77 80 80 77 77 Average Speed 99 | 153 160 108 80 80 78 77 Slowest Speed 160 | 160 160 160 80 80 80 77 Overloaded Moves . | . . . . . . . Propulsion Burnouts . | . . . . . . . Robots Hopped . | . . . . . . . Potential Cave-ins . | . . . . . . . Cave-ins Triggered . | . . . . . . . Exploration Rate (%) 30 | 4 33 56 57 35 25 2 Regions Visited 6 Branch Regions 3 Pre-discovered Areas 3 | . 1 . 1 . 1 . Known Exits Taken 2 | . 1 . . . 1 . Unknown Exits Taken 4 | 1 . 1 1 1 . . Scrap Searched 2 | . . 1 . 1 . . Spaces Dug . | . . . . . . . Terrain Destroyed 4 | . . . . . 4 . Melee . | . . . . . . . Projectile . | . . . . . . . AOE 4 | . . . . . 4 . Terrain Rammed . | . . . . . . . Walls Destroyed . | . . . . . . . Machines Disabled . | . . . . . . . Actions | -11 -10 -10 -10 -9 -8 -7 --------- Run | Yrd Mat Min Exi Min Mat Fac Total 1251 | 45 123 426 174 116 278 89 Wait 57 | 2 . 13 . 2 39 1 Move 1061 | 33 120 334 174 112 221 67 Hop . | . . . . . . . Pick Up 17 | 2 . 12 . . 1 2 Fast Attach 15 | 7 . 3 . . 5 . Attach 5 | . . 4 . . 1 . Detach . | . . . . . . . Swap 4 | . . 3 . . . 1 Drop 15 | . . 10 . . 3 2 Fire 77 | 1 3 47 . 2 8 16 Melee . | . . . . . . . Ram . | . . . . . . . Kick . | . . . . . . . Crush . | . . . . . . . Escape Stasis . | . . . . . . . Rewire . | . . . . . . . Trap . | . . . . . . . Miscellaneous . | . . . . . . . Route ------- -11/Scrapyard -10/Materials (discovered 3 exits: [*Mat] / *Min x2) -10/Mines (discovered 2 exits: [*Mat] / *Exi) -10/Exiles -9/Mines -8/Materials (discovered 3 exits: *Fac x3) -7/Factory (discovered 2 exits: Low x2) History --------- Turn | Location | Event 12 | -11/Scrapyard | Discovered new exit (range 16) 69 | -11/Scrapyard | Entered Materials 129 | -10/Materials | Discovered new exit (range 16) 224 | -10/Materials | Identified exit to Mines 270 | -10/Materials | Entered Mines 298 | -10/Mines | Assembled infested the area 315 | -10/Mines | Build established: Mutant 535 | -10/Mines | Core integrity fell below 50% 697 | -10/Mines | Learned Materials emergency access door positions 703 | -10/Mines | Discovered new exit (range 6) 805 | -10/Mines | Deemed a non-threat by the Exiles lab entrance 805 | -10/Mines | Discovered new exit (range 6) 809 | -10/Mines | Entered Exiles 830 | -10/Exiles | Met 8R-AWN 843 | -10/Exiles | Met EX-HEX 897 | -10/Exiles | Met EX-BIN 908 | -10/Exiles | Met EX-DEC 913 | -10/Exiles | Learned location of Zion (-7) 915 | -10/Exiles | Build established: Scavenger-Mutant 939 | -10/Exiles | Discovered new exit (range 14) 949 | -10/Exiles | Entered Mines 959 | -9/Mines | Met a Derelict bent on vengeance 1006 | -9/Mines | Discovered new exit (range 10) 1010 | -9/Mines | Received a Mining Laser from a helpful Derelict 1019 | -9/Mines | Learned Materials garrison access intel 1045 | -9/Mines | Entered Materials 1045 | -8/Materials | Accompanied by 1 ally 1045 | -8/Materials | Evolved 4 slots: Propulsion x2, Utility x2 1047 | -8/Materials | Loaded intel: 1 garrison access location 1054 | -8/Materials | Identified exit to Factory 1163 | -8/Materials | Repaired Broken Cmb. Airjet 1291 | -8/Materials | Entered Factory 1291 | -7/Factory | Evolved 2 slots: Utility x2 1385 | -7/Factory | Identified exit to Lower Caves 1385 | -7/Factory | Self-destructed Last Messages --------------- 01329_ ALERT: All DSF locations entering lockdown mode. 01343_ Imp. Light Armor Plating destroyed. 01347_ Hvy. EM Shotgun destroyed. 01347_ S-27 Virus destroyed. 01349_ Destroyed VTOL Module. 01351_ S-27 Virus destroyed. 01363_ S-27 Virus suffers critical hit (Burn). 01367_ VTOL Module melted. 01367_ S-27 Virus destroyed. 01370_ Acquired 25 matter. 01372_ Acquired VTOL Module. 01376_ Dropped VTOL Module. 01376_ Acquired VTOL Module. 01385_ Connecting with Terminal... >>Access(Branch) Found 2 branch access points: (147,59) Lower Caves (194,143) Lower Caves Map updated. Map ----- +----------------------------------------------------+ | | | | | | | | | | | | | | | | | | | ?????????????????????????????????????????????????? | | ??????????????????????????##?????????????????????? | | ?????????????????????????? #????????????????????? | | ????????????????????????? #????????????????????? | | ?????????????????????????" #????????????????????? | | ????????????????????????? #????????????????????? | | ??????????????????????""" #????????????????????? | | ??????????????????????""" #????????????????????? | | ???????????????????????"" #? ??????????????????? | | ??????????????????????? # ???????????????????? | | ??????????????????????? ] +????????????????????? | | ???????????????????????# #????????????????????? | | ???????????????????????# ####### ???????????? | | ???????????????????????# ???????????? | | ???????????????????????# ???????????? | | ?????????????????####### " ]]] ""?????????????? | | ????#####????????# @T t]]] ""?????????????? | | ????# #????????# " ]] ""?????????????? | | ????# ########## ??????????? | | ????# + * [ ??????????? | | ????# #### #####;########## ??????????? | | ????# #??# #??# % #??????? ??????????? | | ????# #??# #??# #???????? ???????????? | | ????# #??# #??# = #????????? ???????????? | | ######+##### #??#%% #?????????? ???????????? | | + = #??????????? ??????????????? | | ### T# #####+#??# #???????????????????????????? | | ??####+#????????# #???????????????????????????? | | ????????????????# #???????????????????????????? | | ###?????????????# #???????????????????????????? | | #?????????????######???????????????????????????? | | " #??????????????????????????????????????????????? | | ""#??????????????????????????????????????????????? | | S"#??????????????????????????????????????????????? | | ""#??????????????????????????????????????????????? | | ""#??????????????????????????????????????????????? | | #??????????????????????????????????????????????? | | #??????????????????????????????????????????????? | | #??????????????????????????????????????????????? | | #+#??????????????????????????????????????????????? | | ?????????????????????????????????????????????????? | +----------------------------------------------------+ Best States ------------- Heat Dissipation 35 Energy Generation 15 Energy Capacity 250 Matter Stores 300 Matter Capacity 300 Sight Range 16 Terrain Scan Density 10 Armor Coverage 150 Evasion (%) 49 Recoil Reduction 2 Offensive Hacking 10 Item Schematics ----------------- None Robot Schematics ------------------ None Fabricated ------------ Nothing Repaired ---------- Cmb. Airjet | 37% | -8/Materials | Broken Alien Tech Used ----------------- None Achievements -------------- None Challenges ------------ None Game ------ Seed BeamSuperchargedSpecial Manual? 0 Play Time 00:15:30 Cumulative 394.8 hours Start 2025.05.10 @ 13:34:44 End 2025.05.10 @ 13:50:23 Sessions 1 Manual Loads 0 Difficulty Rogue Special Mode None Game No. 394 Rogue 389 Adventurer 5 Explorer 0 Win Type - Total 9 Types 6/0/0/3/0/0/0/0/0/0 Lore% 77 Gallery% 77 Achievement% 71 Wizard Run 0 Options --------- Layout 1 ASCII 0 Keyboard 0 Movement Arrows Keybinds 0 Fullscreen 1 Font 24/Terminus Map View 50x35 Zoom Use 0% Tactical HUD 1 Map Filters NONE Filters NONE Steam 1 RUN: 3ab43fdf-ec48-40ef-a609-d8fb8bc7bbf8